bitfinex/quotes_SOLUSD_20240622
["timestamp","ask_amount","ask_price","bid_price","bid_amount"]
[1719044027455,13.9411,134.75,134.71,7.4233]
[1719044028149,7.4211,134.75,134.71,7.4233]
[1719044028358,13.9411,134.75,134.71,7.4233]
[1719044028553,13.9411,134.75,134.7,13.9436]
[1719044030756,6.52,134.74,134.7,7.4236]
[1719044030956,7.4211,134.75,134.7,7.4236]
[1719044031153,6.52,134.74,134.7,7.4236]
[1719044031352,13.9411,134.75,134.7,7.4236]
[1719044032259,7.4211,134.75,134.7,7.4236]
[1719044032454,7.4203,134.77,134.72,7.4223]
[1719044032655,13.9403,134.77,134.72,7.4223]
[1719044032963,13.9407,134.76,134.71,7.4232]
[1719044034049,6.52,134.76,134.73,7.422]
[1719044034357,6.52,134.78,134.74,7.4216]
[1719044035236,23.6499,134.8,134.75,7.421]
[1719044035439,16.2313,134.8,134.76,7.4205]
[1719044035757,22.7513,134.8,134.76,7.4205]
[1719044036264,8.2995329,134.83,134.78,7.4192]
[1719044036465,6.52,134.82,134.76,22.762]
[1719044036640,6.52,134.82,134.78,7.4191]
[1719044037855,13.9373,134.82,134.77,7.4198]
[1719044038054,13.9373,134.82,134.76,16.242]
[1719044038055,7.4178,134.81,134.76,23.6624]
[1719044038449,7.4178,134.81,134.76,30.1824]
[1719044038850,13.9378,134.81,134.76,30.1824]
[1719044039055,7.4178,134.81,134.76,23.6624]
[1719044040271,7.4178,134.81,134.76,7.4204]
[1719044040573,7.4184,134.8,134.75,7.4209]
[1719044041563,7.4184,134.8,134.73,16.242]
[1719044041564,7.4195,134.78,134.73,16.242]
[1719044041875,7.4189,134.79,134.74,7.4214]
[1719044042562,7.4185,134.8,134.75,7.421]
[1719044044272,29.665,134.81,134.76,7.4203]
[1719044044454,23.6493,134.81,134.76,7.4203]
[1719044045150,7.4185,134.8,134.75,7.4208]
[1719044045353,7.4185,134.8,134.73,16.242]
[1719044046772,7.4185,134.8,134.76,7.4205]
[1719044047473,23.6493,134.81,134.76,7.4205]
[1719044047660,7.4185,134.8,134.75,7.4208]
[1719044048354,16.2313,134.81,134.74,7.4214]
[1719044048355,7.4189,134.79,134.74,7.4214]
[1719044048947,19.4258329,134.83,134.72,25.1866]
[1719044048948,0.8828329,134.83,134.73,33.6267]
[1719044049151,0.8828329,134.83,134.79,7.4186]
[1719044049673,8.2996329,134.83,134.79,7.4186]
[1719044050051,7.4174,134.82,134.75,18.5525]
[1719044050248,7.4179,134.81,134.73,33.6274]
[1719044050465,7.4179,134.81,134.77,7.42]
[1719044051049,7.4179,134.81,134.76,7.4204]
[1719044051752,7.4184,134.8,134.75,7.4209]
[1719044051979,7.4184,134.8,134.76,7.4205]
[1719044052474,7.418,134.81,134.76,7.4205]
[1719044055970,0.8828329,134.83,134.76,7.4205]
[1719044056171,20.8828329,134.83,134.76,7.4205]
[1719044056677,20.8828329,134.83,134.77,7.4198]
[1719044056678,7.4176,134.82,134.77,7.4198]
[1719044057363,7.4179,134.81,134.77,7.4198]
[1719044057771,7.4179,134.81,134.76,7.4204]
[1719044063357,7.4179,134.81,134.75,7.4209]
[1719044064384,7.4184,134.8,134.75,7.4209]
[1719044065483,7.419,134.79,134.74,7.4214]
[1719044065775,20.8828329,134.83,134.73,15.0722]
[1719044065968,7.4197,134.78,134.73,22.4942]
[1719044066276,7.4197,134.78,134.73,7.422]
[1719044066479,7.4191,134.79,134.73,7.422]
[1719044066654,7.4195,134.78,134.73,7.422]
[1719044066853,7.4191,134.79,134.73,7.422]
[1719044068378,7.4195,134.78,134.73,7.422]
[1719044069173,7.42,134.77,134.7,15.2947]
[1719044069480,7.42,134.77,134.71,7.4228]
[1719044069881,7.42,134.77,134.72,7.4227]
[1719044070255,15.7331,134.8,134.7,15.2947]
[1719044070472,20.0,134.79,134.7,15.2947]
[1719044070880,20.0,134.79,134.7,33.8532]
[1719044071176,7.4203,134.77,134.72,7.4227]
[1719044072690,7.4206,134.76,134.71,7.4232]
[1719044074662,13.6965,134.77,134.71,7.4232]
[1719044075177,13.6965,134.77,134.72,7.4224]
[1719044075483,7.421,134.76,134.68,24.6487]
[1719044076786,7.421,134.76,134.71,7.423]
[1719044080587,7.421,134.76,134.7,7.4236]
[1719044081082,7.4211,134.75,134.7,7.4236]
[1719044081985,6.2762,134.77,134.71,7.423]
[1719044082188,44.47689598,134.79,134.68,24.6487]
[1719044082365,7.4197,134.78,134.72,7.4222]
[1719044082570,7.4197,134.78,134.73,7.4222]
[1719044083081,27.4194,134.79,134.73,7.422]
[1719044083275,15.7331,134.8,134.73,7.422]
[1719044083478,7.4191,134.79,134.73,7.422]
[1719044083686,7.4195,134.78,134.73,7.422]
[1719044083877,7.4191,134.79,134.73,7.422]
[1719044084266,7.4191,134.79,134.74,7.4216]
[1719044086087,21.5622646,134.8,134.71,15.0108]
[1719044086701,7.4203,134.77,134.72,7.4225]
[1719044087484,7.4197,134.78,134.72,7.4225]
[1719044087884,7.42,134.77,134.72,7.4225]
[1719044088576,7.42,134.77,134.71,22.4339]
[1719044089988,7.42,134.77,134.72,7.4226]
[1719044097179,7.4197,134.78,134.72,7.4226]
[1719044097898,7.4197,134.78,134.73,7.4222]
[1719044100405,40.1093646,134.8,134.72,7.4226]
[1719044100581,7.4192,134.79,134.73,7.4221]
[1719044100780,7.4192,134.79,134.73,7.4219]
[1719044101206,7.4195,134.78,134.73,7.4219]
[1719044101634,7.4202,134.77,134.72,7.4225]
[1719044101837,7.4214,134.75,134.7,7.4237]
[1719044102891,7.4208,134.76,134.7,7.4237]
[1719044104482,7.4211,134.75,134.7,7.4237]
[1719044104885,7.4208,134.76,134.7,7.4237]
[1719044106806,7.4212,134.75,134.7,7.4237]
[1719044107389,81.8261,134.79,134.68,21.8124]
[1719044107616,7.4224,134.73,134.68,15.7261]
[1719044107797,15.8158,134.75,134.67,7.4252]
[1719044107798,7.4229,134.72,134.67,7.4252]
[1719044108001,7.4225,134.73,134.67,7.4252]
[1719044108501,7.4225,134.73,134.68,7.4248]
[1719044109098,7.4225,134.73,134.67,7.4252]
[1719044109810,7.4228,134.72,134.67,7.4252]
[1719044111602,7.4224,134.73,134.67,7.4252]
[1719044114313,7.4229,134.72,134.67,7.4252]
[1719044116118,7.4225,134.73,134.67,7.4252]
[1719044118315,34.3699,134.75,134.67,7.4255]
[1719044118514,7.4231,134.72,134.66,7.4258]
[1719044119420,7.4231,134.72,134.67,7.4255]
[1719044125227,7.4234,134.71,134.66,7.4258]
[1719044125606,7.4234,134.71,134.65,29.2668]
[1719044125907,7.4234,134.71,134.66,7.426]
[1719044132639,7.423,134.72,134.67,7.4255]
[1719044136138,22.77523693,134.75,134.65,28.14124254]
[1719044136139,21.67909729,134.75,134.68,7.4248]
[1719044136336,27.4221,134.74,134.68,7.4248]
[1719044137019,7.4223,134.73,134.68,7.4248]
[1719044137344,21.67909729,134.75,134.69,7.4242]
[1719044137835,7.4218,134.74,134.69,7.4242]
[1719044139152,13.28469729,134.75,134.69,7.4242]
[1719044139955,7.4217,134.74,134.69,7.424]
[1719044140246,7.4223,134.73,134.68,7.4247]
[1719044141041,7.4223,134.73,134.67,7.4253]
[1719044141240,7.4223,134.73,134.68,7.425]
[1719044148346,7.4223,134.73,134.67,7.4252]
[1719044148549,7.4232,134.72,134.67,7.4252]
[1719044148741,7.4232,134.72,134.66,7.4258]
[1719044149553,7.4233,134.71,134.66,7.4258]
[1719044150840,7.4227,134.73,134.68,7.4247]
[1719044151033,7.4228,134.72,134.67,7.4253]
[1719044154457,7.4224,134.73,134.68,7.4249]
[1719044155154,7.4228,134.72,134.67,7.4253]
[1719044155633,7.4223,134.73,134.68,7.4246]
[1719044157158,7.4228,134.72,134.67,7.4253]
[1719044158258,7.4224,134.73,134.68,7.4249]
[1719044160342,7.4228,134.72,134.67,7.4253]
[1719044161954,7.4228,134.72,134.68,1.16299364]
[1719044162138,7.4228,134.72,134.68,8.58799364]
[1719044162333,7.4228,134.72,134.68,7.425]
[1719044162745,6.4165,134.72,134.66,6.37006811]
[1719044162958,7.4247,134.69,134.64,7.4271]
[1719044163854,7.4241,134.7,134.64,7.4271]
[1719044164162,7.4241,134.7,134.65,7.4266]
[1719044164950,7.4245,134.69,134.64,7.4269]
[1719044165146,7.424,134.7,134.65,7.4266]
[1719044169264,7.4234,134.71,134.66,7.426]
[1719044169569,7.427,134.65,134.59,7.4294]
[1719044169760,15.9598,134.66,134.58,7.4303]
[1719044170168,34.5263,134.66,134.56,7.4314]
[1719044170344,34.5263,134.66,134.57,7.431]
[1719044170345,7.4286,134.62,134.57,7.431]
[1719044170946,7.4279,134.63,134.58,7.4303]
[1719044171144,7.4274,134.64,134.58,7.4303]
[1719044172278,7.4279,134.63,134.58,7.4303]
[1719044172777,34.5263,134.66,134.59,7.4298]
[1719044172778,7.4274,134.64,134.59,7.4298]
[1719044173076,34.5263,134.66,134.55,41.3186]
[1719044173077,23.3864,134.66,134.57,18.5776]
[1719044173282,23.3864,134.66,134.6,7.429]
[1719044173658,23.3864,134.66,134.61,7.4288]
[1719044173853,15.9598,134.66,134.57,18.5776]
[1719044174166,7.4268,134.65,134.57,18.5776]
[1719044174369,23.3859,134.66,134.61,7.4285]
[1719044174576,13.4541,134.67,134.62,7.428]
[1719044176674,7.4266,134.65,134.6,7.429]
[1719044176973,6.0284,134.67,134.57,18.5774]
[1719044177352,7.4268,134.65,134.6,7.4291]
[1719044178470,7.4262,134.66,134.61,7.4288]
[1719044178663,7.4266,134.65,134.6,7.4292]
[1719044179682,7.4273,134.64,134.58,7.4302]
[1719044179865,7.4273,134.64,134.57,18.5774]
[1719044179866,7.4273,134.64,134.59,7.4299]
[1719044180068,7.4261,134.66,134.61,7.4283]
[1719044180572,13.4541,134.67,134.62,7.4283]
[1719044180753,20.0,134.66,134.61,7.4286]
[1719044181576,27.4262,134.66,134.61,7.4286]
[1719044181875,13.4542,134.67,134.61,7.4286]
[1719044183177,7.4263,134.66,134.61,7.4286]
[1719044185477,7.4263,134.66,134.6,7.4291]
[1719044185974,7.4266,134.65,134.6,7.4291]
[1719044188583,7.4283,134.62,134.57,7.4307]
[1719044189174,7.4283,134.62,134.58,7.4305]
[1719044189374,7.4279,134.63,134.58,7.4305]
[1719044190489,18.5663,134.66,134.55,41.3192]
[1719044190490,7.4274,134.64,134.59,7.4299]
[1719044192689,7.4269,134.65,134.6,7.4294]
[1719044194390,7.4272,134.64,134.59,7.4297]
[1719044195293,7.4268,134.65,134.6,7.4293]
[1719044198493,16.4159,134.64,134.56,18.578]
[1719044198887,7.4278,134.63,134.58,7.4302]
[1719044199201,7.4278,134.63,134.59,7.4299]
[1719044200502,7.4278,134.63,134.58,7.4302]
[1719044200884,23.8433,134.64,134.59,7.4299]
[1719044203674,16.4159,134.64,134.6,7.4294]
[1719044204685,23.8432,134.64,134.59,7.4297]
[1719044206094,23.8432,134.64,134.6,7.4294]
[1719044206807,23.8432,134.64,134.59,7.4297]
[1719044207703,7.4277,134.63,134.58,7.4303]
[1719044208014,16.4159,134.64,134.57,7.4309]
[1719044208015,7.4283,134.62,134.57,7.4309]
[1719044208831,6.1243,134.62,134.52,24.6152]
[1719044209107,27.4291,134.61,134.56,7.4314]
[1719044209403,7.4303,134.59,134.54,7.4325]
[1719044209590,7.4295,134.6,134.55,7.4319]
[1719044210198,7.4301,134.59,134.54,7.4326]
[1719044212724,7.4297,134.6,134.55,7.4321]
[1719044213186,22.5868,134.6,134.55,7.4321]
[1719044213382,22.5868,134.6,134.52,18.5842]
[1719044213383,7.43,134.59,134.54,7.4324]
[1719044214284,7.4322,134.55,134.5,7.4345]
[1719044214584,7.4323,134.55,134.5,7.4346]
[1719044214796,7.4328,134.54,134.49,7.4354]
[1719044216508,7.4333,134.53,134.48,7.4358]
[1719044217234,7.4329,134.54,134.49,7.4354]
[1719044217793,7.4334,134.53,134.48,7.4359]
[1719044218208,13.4511,134.54,134.48,7.4359]
[1719044218421,13.4511,134.54,134.49,7.4353]
[1719044218633,7.4335,134.53,134.47,7.4363]
[1719044218812,7.4338,134.52,134.47,7.4363]
[1719044219534,7.4343,134.51,134.46,7.4369]
[1719044219810,7.4351,134.5,134.45,7.4376]
[1719044220018,7.4345,134.51,134.46,7.4371]
[1719044220890,18.5847,134.52,134.42,18.5972]
[1719044221195,7.4359,134.49,134.44,7.4379]
[1719044221913,7.4344,134.51,134.46,7.4368]
[1719044222119,20.0,134.5,134.46,7.4368]
[1719044223021,27.4349,134.5,134.45,7.4374]
[1719044223506,28.6116,134.48,134.43,7.4386]
[1719044223710,21.1753,134.48,134.4,18.6011]
[1719044224512,21.1753,134.48,134.41,7.4398]
[1719044224816,7.4369,134.47,134.42,7.4393]
[1719044225023,28.6115,134.48,134.43,7.4387]
[1719044225823,28.6115,134.48,134.39,24.7738]
[1719044225824,21.1753,134.48,134.39,24.7738]
[1719044225994,21.1753,134.48,134.41,7.4395]
[1719044226314,28.6115,134.48,134.42,7.439]
[1719044226829,15.1571,134.48,134.4,18.6]
[1719044227118,22.5931,134.48,134.43,7.4386]
[1719044228520,15.1571,134.48,134.43,7.4386]
[1719044229023,22.5933,134.48,134.43,7.4388]
[1719044229830,15.1571,134.48,134.43,7.4388]
[1719044230322,22.5932,134.48,134.43,7.4388]
[1719044231127,15.1571,134.48,134.43,7.4388]
[1719044231827,22.5932,134.48,134.43,7.4388]
[1719044232930,7.4371,134.46,134.41,7.4397]
[1719044233130,7.4368,134.47,134.42,7.4392]
[1719044233331,7.4371,134.46,134.41,7.4397]
[1719044234821,15.1571,134.48,134.39,6.1725]
[1719044235005,7.4378,134.45,134.4,7.4403]
[1719044235506,20.0,134.5,134.05,74.5944]
[1719044235507,22.9405,134.44,134.3,361.804865]
[1719044235702,7.4403,134.41,134.36,7.4426]
[1719044235898,7.4403,134.41,134.35,8.3256329]
[1719044236317,7.4407,134.4,134.35,8.3259329]
[1719044236530,7.4407,134.4,134.35,0.8828329]
[1719044236903,7.4407,134.4,134.35,8.3256329]
[1719044237301,7.4412,134.39,134.35,0.8828329]
[1719044238309,7.4406,134.4,134.35,8.3260329]
[1719044239016,7.4401,134.41,134.36,7.4425]
[1719044239226,7.4395,134.42,134.37,7.4419]
[1719044239914,7.439,134.43,134.38,7.4411]
[1719044240316,22.9405,134.44,134.37,7.4419]
[1719044240317,7.4394,134.42,134.37,7.4419]
[1719044241229,7.4401,134.41,134.36,7.4422]
[1719044242117,7.4396,134.42,134.37,7.4418]
[1719044242443,7.4393,134.42,134.37,7.4417]
[1719044245221,7.44,134.41,134.36,7.4425]
[1719044245627,7.4396,134.42,134.37,7.4421]
[1719044246528,7.4399,134.41,134.37,7.4421]
[1719044246735,7.4399,134.41,134.36,7.4424]
[1719044247140,7.4394,134.42,134.37,7.4419]
[1719044247450,7.44,134.41,134.36,7.4424]
[1719044247820,7.44,134.41,134.36,9.58803978]
[1719044248031,7.44,134.41,134.36,7.4424]
[1719044248941,7.44,134.41,134.36,11.07387948]
[1719044249239,7.44,134.41,134.36,7.4425]
[1719044249539,7.44,134.41,134.37,7.4421]
[1719044249918,7.44,134.41,134.36,7.4424]
[1719044250842,22.9405,134.44,134.36,3.63305718]
[1719044251036,7.4391,134.43,134.38,7.4412]
[1719044251544,7.4396,134.42,134.37,7.442]
[1719044251930,22.9405,134.44,134.35,16.2578329]
[1719044251931,7.4402,134.41,134.36,7.4424]
[1719044253246,7.4395,134.42,134.37,7.442]
[1719044254638,7.44,134.41,134.37,7.442]
[1719044254828,7.44,134.41,134.36,7.4424]
[1719044255139,7.44,134.41,134.36,8.92815688]
[1719044255336,7.4404,134.4,134.36,8.92815688]
[1719044256231,7.4401,134.41,134.36,8.92815688]
[1719044256622,7.4401,134.41,134.36,9.60259292]
[1719044257031,7.4401,134.41,134.36,7.4424]
[1719044258944,7.441,134.39,134.35,0.8828329]
[1719044259350,7.4406,134.4,134.35,8.3257329]
[1719044259525,7.4407,134.4,134.35,8.3257329]
[1719044261158,7.44,134.41,134.36,7.4424]
[1719044262462,7.4404,134.4,134.36,7.4424]
[1719044263055,7.4404,134.4,134.35,8.3258329]
[1719044264665,7.4401,134.41,134.36,7.4426]
[1719044266472,7.4404,134.4,134.36,7.4426]
[1719044266686,7.4401,134.41,134.36,7.4426]
[1719044267351,7.4404,134.4,134.35,8.3257329]
[1719044267645,7.4404,134.4,134.35,10.48433049]
[1719044267849,7.4404,134.4,134.36,7.4426]
[1719044268161,7.4401,134.41,134.36,7.4426]
[1719044269067,22.2581787,134.44,134.35,3.04143049]
[1719044269267,7.4384,134.44,134.36,15.2952]
[1719044269502,7.4389,134.43,134.36,33.9005]
[1719044269780,7.4389,134.43,134.38,7.4411]
[1719044271374,7.4393,134.42,134.38,7.4411]
[1719044272077,7.4393,134.42,134.37,7.4418]
[1719044272971,7.439,134.43,134.38,7.4415]
[1719044274951,7.439,134.43,134.39,7.4409]
[1719044276465,7.439,134.43,134.38,7.4413]
[1719044280183,7.4394,134.42,134.37,7.442]
[1719044282256,7.4394,134.42,134.38,7.4415]
[1719044282462,7.4389,134.43,134.38,7.4415]
[1719044284764,7.4383,134.44,134.39,7.4409]
[1719044285082,7.4388,134.43,134.39,7.4409]
[1719044285304,18.5939,134.46,134.39,7.4409]
[1719044285305,7.4384,134.44,134.39,7.4409]
[1719044286167,7.4388,134.43,134.38,7.4413]
[1719044286776,18.5955,134.45,134.37,7.4419]
[1719044286979,7.4397,134.42,134.37,7.4419]
[1719044288091,7.44,134.41,134.37,7.4419]
[1719044288266,7.44,134.41,134.36,22.7376]
[1719044289371,7.4406,134.4,134.35,0.8828329]
[1719044289683,7.44,134.41,134.35,0.8828329]
[1719044289886,7.4407,134.4,134.35,2.36824005]
[1719044290085,18.5972,134.43,134.35,2.36824005]
[1719044290272,7.4402,134.41,134.36,7.4425]
[1719044291586,34.7998,134.45,134.35,0.8828329]
[1719044291895,34.7998,134.45,134.39,7.4407]
[1719044291896,7.4384,134.44,134.39,7.4407]
[1719044292393,7.4389,134.43,134.38,7.4413]
[1719044293096,7.4396,134.42,134.37,7.442]
[1719044294595,7.4399,134.41,134.36,7.4425]
[1719044295593,7.4399,134.41,134.37,7.442]
[1719044295892,7.4399,134.41,134.36,7.4425]
[1719044296275,7.4405,134.4,134.35,8.3258329]
[1719044296690,7.4405,134.4,134.36,7.4425]
[1719044296885,7.4401,134.41,134.36,7.4425]
[1719044297084,7.4401,134.41,134.37,7.442]
[1719044297276,7.4406,134.4,134.35,0.8828329]
[1719044297479,7.4401,134.41,134.36,7.4425]
[1719044298089,7.4399,134.41,134.36,7.4424]
[1719044301295,7.4409,134.4,134.35,8.3260329]
[1719044302396,7.4401,134.41,134.36,7.4424]
[1719044303981,7.4404,134.4,134.35,8.3257329]
[1719044309807,7.4404,134.4,134.36,7.4425]
[1719044310327,7.4401,134.41,134.36,7.4425]
[1719044311003,7.4401,134.41,134.35,2.36916566]
[1719044311004,7.4401,134.41,134.37,7.442]
[1719044311401,7.4401,134.41,134.36,7.4424]
[1719044312708,7.4409,134.4,134.35,8.3258329]
[1719044313898,7.4409,134.4,134.36,9.6553161]
[1719044314099,7.4409,134.4,134.36,7.4426]
[1719044316307,18.5984,134.42,134.35,8.3259329]
[1719044317012,7.4407,134.4,134.35,8.3259329]
[1719044318795,7.4426,134.37,134.35,0.8828329]
[1719044319313,7.4426,134.36,134.35,0.8828329]
[1719044319496,7.4441,134.34,134.3,16.4505]
[1719044320193,34.5966,134.36,134.27,6.4439]
[1719044320392,7.4434,134.35,134.3,7.4459]
[1719044320597,23.4325,134.36,134.31,7.4454]
[1719044321210,7.4433,134.35,134.3,7.4458]
[1719044322316,15.9896,134.36,134.27,6.4439]
[1719044322618,7.4435,134.35,134.3,7.4459]
[1719044323116,15.9896,134.36,134.24,18.6231]
[1719044323414,20.0,134.35,134.24,18.6231]
[1719044323594,7.4456,134.31,134.27,7.4476]
[1719044323795,7.4451,134.32,134.24,18.6231]
[1719044324213,7.4441,134.34,134.25,18.6208]
[1719044324407,27.4433,134.35,134.23,16.4505]
[1719044324613,7.4417,134.38,134.33,7.4441]
[1719044325113,7.4422,134.37,134.32,7.4447]
[1719044325619,40.9755,134.4,134.29,6.4439]
[1719044326000,7.4423,134.37,134.32,7.4445]
[1719044326591,22.373,134.4,134.28,16.4505]
[1719044326915,18.6066,134.37,134.28,16.4505]
[1719044327099,7.443,134.36,134.31,7.4451]
[1719044327300,7.4423,134.37,134.32,7.4448]
[1719044327614,38.6028,134.39,134.31,7.4452]
[1719044327615,7.4428,134.36,134.31,7.4452]
[1719044327822,7.4433,134.35,134.3,7.4457]
[1719044327996,7.444,134.34,134.29,7.446]
[1719044328307,38.6025,134.39,134.28,35.068]
[1719044328506,7.4431,134.36,134.31,7.4452]
[1719044329200,7.4432,134.35,134.31,7.4452]
[1719044329514,7.4432,134.35,134.31,7.4454]
[1719044329706,7.4442,134.34,134.29,45.0]
[1719044330020,7.4442,134.34,134.29,7.4465]
[1719044333215,7.446,134.3,134.26,7.4479]
[1719044333418,7.446,134.3,134.23,18.6234]
[1719044333595,7.4457,134.31,134.26,7.4481]
[1719044335305,44.67,134.32,134.22,15.9035329]
[1719044335502,20.0,134.31,134.22,15.9035329]
[1719044335695,7.447,134.29,134.24,7.4489]
[1719044336097,7.447,134.29,134.25,7.4487]
[1719044336300,20.0,134.31,134.22,15.9035329]
[1719044336301,7.448,134.27,134.22,15.9035329]
[1719044336502,7.4482,134.26,134.22,0.8828329]
[1719044336703,7.4488,134.25,134.22,0.8828329]
[1719044337012,7.4479,134.27,134.22,8.3331329]
[1719044337309,35.402,134.31,134.22,0.8828329]
[1719044337499,54.0166,134.31,134.23,7.4497]
[1719044337700,7.4463,134.3,134.24,7.4489]
[1719044337906,7.4465,134.29,134.24,7.4489]
[1719044338308,54.0165,134.31,134.22,0.8828329]
[1719044338802,7.4476,134.27,134.22,8.3329329]
[1719044339999,7.4473,134.28,134.23,7.4498]
[1719044340213,35.402,134.31,134.22,19.5088329]
[1719044340528,35.402,134.31,134.22,0.8828329]
[1719044340735,7.4469,134.29,134.24,7.4492]
[1719044341105,7.4461,134.3,134.25,7.4486]
[1719044341316,27.4458,134.31,134.26,7.4482]
[1719044341511,7.4449,134.32,134.27,7.4474]
[1719044342300,7.4441,134.34,134.29,7.4464]
[1719044342508,9.09178809,134.37,134.3,7.4458]
[1719044342509,7.4433,134.35,134.3,7.4458]
[1719044342704,7.4433,134.35,134.24,6.0369]
[1719044342705,7.4444,134.33,134.28,7.4469]
[1719044342912,7.4438,134.34,134.29,7.4465]
[1719044343230,18.609,134.35,134.27,7.4473]
[1719044343411,18.609,134.35,134.28,7.4471]
[1719044343412,7.4445,134.33,134.28,7.4471]
[1719044344215,7.444,134.34,134.29,7.4465]
[1719044344610,7.4434,134.35,134.3,7.4456]
[1719044344817,18.6055,134.37,134.26,18.6204]
[1719044345120,18.6055,134.37,134.29,7.4462]
[1719044345121,7.4439,134.34,134.29,7.4462]
[1719044345326,7.4443,134.33,134.28,7.4469]
[1719044346130,18.6083,134.35,134.24,24.66]
[1719044346507,7.4446,134.33,134.28,7.4467]
[1719044346743,7.4449,134.32,134.27,7.4474]
[1719044347637,7.445,134.32,134.27,7.4476]
[1719044348720,7.4457,134.31,134.26,7.4481]
[1719044349421,18.6108,134.34,134.24,24.66]
[1719044349620,7.4458,134.31,134.26,7.448]
[1719044350522,7.4467,134.29,134.24,6.0369]
[1719044350723,7.4457,134.31,134.23,15.0207]
[1719044350930,7.4457,134.31,134.26,7.4481]
[1719044351329,6.4615,134.33,134.28,7.4466]
[1719044351330,7.4448,134.33,134.28,7.4466]
[1719044351535,15.7442,134.35,134.23,52.2692]
[1719044351721,7.4438,134.34,134.29,7.4463]
[1719044351925,7.4444,134.33,134.28,7.4467]
[1719044352120,7.444,134.34,134.29,7.4464]
[1719044354614,7.4443,134.33,134.29,7.4464]
[1719044354837,7.4443,134.33,134.28,7.4469]
[1719044355369,7.4455,134.31,134.24,18.6231]
[1719044355530,7.4461,134.3,134.23,15.0207]
[1719044355735,7.4461,134.3,134.25,7.4484]
[1719044356044,7.4461,134.3,134.26,7.4481]
[1719044356427,7.4456,134.31,134.26,7.4481]
[1719044356625,18.6109,134.33,134.26,7.4481]
[1719044356626,7.446,134.3,134.26,7.4481]
[1719044357024,7.446,134.3,134.25,7.4485]
[1719044357227,7.446,134.3,134.23,15.0207]
[1719044357228,7.446,134.3,134.26,7.4481]
[1719044357630,7.446,134.3,134.25,7.4485]
[1719044359340,7.448,134.27,134.22,0.8828329]
[1719044359532,7.448,134.27,134.22,8.3328329]
[1719044359919,7.4479,134.27,134.22,8.3328329]
[1719044360924,7.4483,134.26,134.22,0.8828329]
[1719044361425,7.4479,134.27,134.22,8.3332329]
[1719044362029,7.4482,134.26,134.22,0.8828329]
[1719044363842,7.4479,134.27,134.22,8.3332329]
[1719044364045,79.0303,134.3,134.23,7.4497]
[1719044364046,7.4473,134.28,134.23,7.4497]
[1719044365737,7.4473,134.28,134.24,7.4493]
[1719044365937,7.4467,134.29,134.24,7.4493]
[1719044366546,7.4469,134.29,134.24,7.4493]
[1719044366847,7.4469,134.29,134.24,7.4491]
[1719044368735,7.4471,134.28,134.23,7.4498]
[1719044369467,7.4467,134.29,134.24,7.4491]
[1719044369626,15.7028,134.33,134.23,16.1104]
[1719044369833,7.4453,134.32,134.27,7.4473]
[1719044370029,7.4445,134.33,134.28,7.447]
[1719044370232,7.4449,134.32,134.27,7.4474]
[1719044371152,7.4446,134.33,134.28,7.447]
[1719044371553,7.4449,134.32,134.27,7.4474]
[1719044372157,7.4445,134.33,134.28,7.447]
[1719044373727,7.4439,134.34,134.29,7.4463]
[1719044375866,7.4435,134.35,134.3,7.446]
[1719044376038,7.4438,134.34,134.29,23.6145]